bitfinex-derivatives/quotes_BTCF0:USTF0_20240923
["timestamp","ask_amount","ask_price","bid_price","bid_amount"]
[1727113797632,0.1046921,63242.0,63241.0,0.081058]
[1727113798326,0.14620435,63242.0,63241.0,0.081058]
[1727113798630,0.14620435,63242.0,63241.0,0.084058]
[1727113799329,0.14620435,63242.0,63241.0,0.10877984]
[1727113800625,0.10469236,63242.0,63241.0,0.084058]
[1727113800814,0.10469236,63242.0,63241.0,0.10878012]
[1727113801626,0.58601846,63242.0,63241.0,0.005]
[1727113801830,0.22521846,63242.0,63241.0,0.005]
[1727113802017,0.335784,63242.0,63241.0,0.005]
[1727113802329,0.079058,63242.0,63241.0,0.1630661]
[1727113802637,0.079058,63242.0,63241.0,0.26452512]
[1727113803121,0.079058,63242.0,63241.0,0.18551702]
[1727113803330,0.079058,63242.0,63241.0,0.18451702]
[1727113804127,0.079058,63242.0,63241.0,0.26352264]
[1727113804328,0.079058,63242.0,63241.0,0.18451702]
[1727113805920,0.079054,63245.0,63244.0,0.079049]
[1727113806120,0.079054,63245.0,63244.0,0.41932011]
[1727113806331,0.079054,63245.0,63244.0,0.31805701]
[1727113806829,0.079054,63245.0,63244.0,0.41936542]
[1727113807139,0.081054,63245.0,63244.0,0.25936542]
[1727113807735,0.081054,63245.0,63244.0,0.28408641]
[1727113807930,0.081054,63245.0,63244.0,0.28403387]
[1727113808232,0.081054,63245.0,63244.0,0.20502586]
[1727113808435,0.081054,63245.0,63244.0,0.25930624]
[1727113808845,0.081054,63245.0,63244.0,0.25931072]
[1727113809225,0.081054,63245.0,63244.0,0.28403173]
[1727113809538,0.081054,63245.0,63244.0,0.25931072]
[1727113809835,0.081054,63245.0,63244.0,0.20503034]
[1727113810525,0.081054,63245.0,63244.0,0.18030935]
[1727113810831,0.081054,63245.0,63244.0,0.20503034]
[1727113810832,0.002,63245.0,63244.0,0.20503034]
[1727113811040,0.002,63245.0,63244.0,0.44408434]
[1727113811425,0.002,63245.0,63244.0,0.45987071]
[1727113811625,0.002,63245.0,63244.0,0.29987071]
[1727113811828,0.002,63245.0,63244.0,0.37892471]
[1727113812140,0.002,63245.0,63244.0,0.53892471]
[1727113812835,0.079047,63250.0,63249.0,0.079048]
[1727113813728,0.3608,63251.0,63250.0,0.079047]
[1727113814039,0.079044,63253.0,63252.0,0.079044]
[1727113814238,0.079044,63253.0,63252.0,0.25887994]
[1727113815033,0.079042,63255.0,63254.0,0.079038]
[1727113815533,0.079042,63255.0,63254.0,0.239038]
[1727113816938,0.090042,63255.0,63254.0,0.240038]
[1727113817134,0.099042,63255.0,63254.0,0.240038]
[1727113817334,0.28263879,63255.0,63254.0,0.240038]
[1727113817536,0.42889663,63255.0,63254.0,0.240038]
[1727113818237,0.4288806,63255.0,63254.0,0.240038]
[1727113818634,0.27091296,63255.0,63254.0,0.240038]
[1727113818835,0.19187096,63255.0,63254.0,0.240038]
[1727113819734,0.33397229,63255.0,63254.0,0.240038]
[1727113820438,0.19187096,63255.0,63254.0,0.240038]
[1727113821838,0.19187096,63255.0,63254.0,0.31908]
[1727113822035,0.26265272,63255.0,63254.0,0.78363853]
[1727113822236,0.08761477,63255.0,63254.0,0.78363853]
[1727113822436,0.08761477,63255.0,63254.0,0.758922]
[1727113822747,0.08761477,63255.0,63254.0,0.78363647]
[1727113823044,0.08789251,63255.0,63254.0,0.78363647]
[1727113823342,0.08689251,63255.0,63254.0,0.78363647]
[1727113823551,0.08589251,63255.0,63254.0,0.78363647]
[1727113824138,0.08389251,63255.0,63254.0,0.78363647]
[1727113824344,0.0016,63260.0,63258.0,0.079037]
[1727113824648,0.0016,63260.0,63258.0,0.239037]
[1727113825646,0.0016,63260.0,63259.0,0.158072]
[1727113825842,0.0076,63260.0,63259.0,0.158072]
[1727113826545,0.0186,63260.0,63259.0,0.158072]
[1727113826741,0.0186,63260.0,63259.0,0.159072]
[1727113826951,0.0186,63260.0,63259.0,0.238108]
[1727113827135,0.079013,63278.0,63271.0,0.079017]
[1727113827335,0.079014,63277.0,63276.0,0.079014]
[1727113829551,0.079014,63277.0,63276.0,0.080014]
[1727113830233,0.49043,63280.0,63279.0,0.079011]
[1727113830437,0.43981,63280.0,63279.0,0.239011]
[1727113831449,0.44581,63280.0,63279.0,0.240011]
[1727113831750,0.44581,63280.0,63279.0,0.241011]
[1727113832336,0.62083586,63280.0,63279.0,0.03543923]
[1727113832841,0.26003586,63280.0,63279.0,0.39623923]
[1727113833039,0.26003586,63280.0,63279.0,0.55426123]
[1727113833040,0.33828201,63280.0,63279.0,0.55426123]
[1727113833240,0.12431591,63280.0,63279.0,1.02834123]
[1727113833450,0.14151713,63291.0,63279.0,1.47031923]
[1727113833642,0.22050913,63294.0,63293.0,0.078993]
[1727113833842,0.27581265,63294.0,63293.0,0.078993]
[1727113834243,0.13429552,63294.0,63293.0,0.078993]
[1727113834442,0.078992,63294.0,63293.0,0.078993]
[1727113835043,0.078992,63294.0,63293.0,0.079993]
[1727113836139,0.001,63294.0,63293.0,0.080993]
[1727113836351,0.078972,63311.0,63293.0,0.080993]
[1727113836352,0.14151713,63300.0,63293.0,1.076]
[1727113836551,0.07898,63304.0,63298.0,0.16]
[1727113836742,0.07898,63304.0,63303.0,0.5208]
[1727113838155,0.07898,63304.0,63303.0,0.599781]
[1727113838339,0.07898,63304.0,63303.0,0.600781]
[1727113838546,0.07898,63304.0,63303.0,0.440781]
[1727113838764,0.078979,63305.0,63304.0,0.078979]
[1727113840351,0.078979,63305.0,63304.0,0.079979]
[1727113840748,0.078974,63309.0,63308.0,0.078974]
[1727113840952,0.1419,63312.0,63306.0,0.078977]
[1727113841154,0.078978,63307.0,63306.0,0.078977]
[1727113841654,0.078978,63307.0,63304.0,0.001]
[1727113841655,0.078978,63305.0,63304.0,0.001]
[1727113841857,0.078978,63305.0,63304.0,0.002]
[1727113842060,0.157956,63305.0,63304.0,0.002]
[1727113842355,0.078978,63305.0,63304.0,0.001]
[1727113842546,0.078982,63302.0,63301.0,0.078983]
[1727113842745,0.439776,63307.0,63294.0,0.2065]
[1727113842746,0.440616,63307.0,63294.0,0.2065]
[1727113842958,0.078988,63298.0,63297.0,0.078987]
[1727113845762,0.078988,63298.0,63297.0,0.079987]
[1727113846663,0.078988,63298.0,63297.0,0.001]
[1727113846852,0.157976,63298.0,63297.0,0.001]
[1727113847456,0.078988,63298.0,63297.0,0.001]
[1727113847762,0.078988,63298.0,63297.0,0.079988]
[1727113851659,0.17301304,63303.0,63298.0,0.078987]
[1727113851862,0.02561085,63302.0,63300.0,0.16]
[1727113852365,0.17301304,63303.0,63302.0,0.078982]
[1727113852568,0.19862351,63303.0,63302.0,0.078982]
[1727113853065,0.02561047,63303.0,63302.0,0.078982]
[1727113853363,0.02560939,63303.0,63301.0,0.078983]
[1727113853562,0.09418466,63304.0,63303.0,0.078981]
[1727113853754,0.25159489,63312.0,63300.0,0.238984]
[1727113853755,0.09418466,63305.0,63304.0,0.078979]
[1727113853956,0.078973,63309.0,63304.0,0.078979]
[1727113853957,0.09418466,63306.0,63305.0,0.078978]
[1727113854155,0.14338344,63308.0,63307.0,0.078976]
[1727113854466,0.078975,63308.0,63307.0,0.078976]
[1727113856158,0.078975,63308.0,63307.0,0.079976]
[1727113856356,0.078975,63308.0,63307.0,0.1271917]
[1727113856558,0.078971,63311.0,63310.0,0.078971]
[1727113857668,0.078971,63311.0,63310.0,0.079971]
[1727113857855,0.00088,63315.0,63310.0,0.001]
[1727113858057,0.078969,63313.0,63312.0,0.078967]
[1727113858259,0.078969,63313.0,63312.0,0.439767]
[1727113858459,0.078969,63313.0,63312.0,0.50272127]
[1727113859267,0.078965,63316.0,63315.0,0.078962]
[1727113859469,0.078965,63316.0,63312.0,0.58375427]
[1727113859470,0.078962,63319.0,63318.0,0.07896]
[1727113859672,0.078962,63319.0,63318.0,0.23896]
[1727113859966,0.078962,63319.0,63318.0,0.16]
[1727113860165,0.078962,63318.0,63316.0,0.12603637]
[1727113860365,0.00236964,63321.0,63314.0,0.06276494]
[1727113860366,0.078966,63315.0,63314.0,0.06276494]
[1727113860567,0.157932,63315.0,63314.0,0.06276494]
[1727113860757,0.157932,63315.0,63310.0,0.08069284]
[1727113860758,0.157934,63314.0,63313.0,0.06276494]
[1727113860961,0.157936,63313.0,63312.0,0.001]
[1727113861364,0.157936,63313.0,63312.0,0.06476494]
[1727113861764,0.236904,63313.0,63312.0,0.06376494]
[1727113862270,0.157936,63313.0,63312.0,0.06376494]
[1727113862571,0.157936,63313.0,63312.0,0.002]
[1727113863276,0.078968,63313.0,63312.0,0.002]
[1727113863458,0.10457531,63313.0,63312.0,0.002]
[1727113863663,0.26251131,63313.0,63312.0,0.002]
[1727113863865,0.42251131,63313.0,63312.0,0.002]
[1727113864366,0.51676063,63313.0,63312.0,0.002]
[1727113864566,0.35676063,63313.0,63312.0,0.002]
[1727113867979,0.35676063,63313.0,63304.0,0.443479]
[1727113867980,0.157952,63307.0,63304.0,0.3645]
[1727113868169,0.078984,63302.0,63301.0,0.078983]
[1727113868370,0.439784,63302.0,63301.0,0.078983]
[1727113868768,0.439784,63302.0,63296.0,0.0037]
[1727113868769,0.078988,63297.0,63296.0,0.082689]
[1727113868968,0.078988,63297.0,63296.0,0.078989]
[1727113869474,0.14316524,63297.0,63296.0,0.078989]
[1727113869886,0.14316524,63297.0,63296.0,0.084989]
[1727113869887,0.23892715,63297.0,63296.0,0.084989]
[1727113871275,0.23892715,63297.0,63296.0,0.093989]
[1727113871670,0.23892715,63297.0,63296.0,0.088989]
[1727113871863,0.23892715,63297.0,63296.0,0.083989]
[1727113872367,0.31791515,63297.0,63296.0,0.005]
[1727113872578,0.45988753,63297.0,63296.0,0.005]
[1727113872781,0.4597375,63297.0,63296.0,0.004]
[1727113873489,0.078989,63296.0,63295.0,0.078991]
[1727113873781,0.23877812,63296.0,63295.0,0.078991]
[1727113874580,0.3807505,63296.0,63295.0,0.078991]
[1727113874885,0.3807505,63296.0,63289.0,0.0037]
[1727113874886,0.157994,63290.0,63289.0,0.0037]
[1727113875080,0.15983287,63290.0,63282.0,0.0037]
[1727113875375,0.15983287,63290.0,63280.0,0.36687018]
[1727113875376,0.079008,63281.0,63280.0,0.44217918]
[1727113875583,0.23078674,63281.0,63280.0,0.44217918]
[1727113875786,0.31403393,63281.0,63280.0,0.44217918]
[1727113875971,0.18786783,63281.0,63280.0,0.44217918]
[1727113876171,0.36437691,63281.0,63280.0,0.36317018]
[1727113876368,0.2382108,63281.0,63280.0,0.36317018]
[1727113876667,0.39597478,63281.0,63280.0,0.36317018]
[1727113877275,0.39597478,63281.0,63280.0,0.36817018]
[1727113877486,0.15776398,63281.0,63280.0,0.47183111]
[1727113878180,0.23677198,63281.0,63280.0,0.55284011]
[1727113878587,0.23677198,63281.0,63280.0,0.52775778]
[1727113879294,0.31577998,63281.0,63280.0,0.07224992]
[1727113879472,0.31577998,63281.0,63280.0,0.00937018]
[1727113879669,0.31577998,63281.0,63280.0,0.05651819]
[1727113879884,0.31577998,63281.0,63280.0,0.00937018]
[1727113880585,0.31577998,63281.0,63280.0,0.05650411]
[1727113880881,0.23677198,63281.0,63280.0,0.29551311]
[1727113881277,0.23677198,63281.0,63280.0,0.24837918]
[1727113881471,0.23677198,63281.0,63280.0,0.29550742]
[1727113881680,0.23677198,63281.0,63280.0,0.13550742]
[1727113882181,0.15776398,63281.0,63280.0,0.13550742]
[1727113882381,0.079005,63285.0,63284.0,0.079003]
[1727113882580,0.079005,63285.0,63284.0,0.239003]
[1727113883681,0.079007,63282.0,63281.0,0.079008]
[1727113884471,0.079009,63280.0,63277.0,0.082712]
[1727113884688,0.079012,63278.0,63277.0,0.079012]
[1727113884883,0.079009,63280.0,63275.0,0.16]
[1727113884884,0.079009,63280.0,63279.0,0.079011]
[1727113886288,0.082703,63285.0,63282.0,0.079004]
[1727113886289,0.079006,63283.0,63282.0,0.079004]
[1727113886489,0.079006,63283.0,63282.0,0.239004]
[1727113887181,0.079006,63283.0,63282.0,0.079004]
[1727113887784,0.079006,63283.0,63282.0,0.082004]
[1727113894382,0.079006,63283.0,63282.0,0.12913224]
[1727113895096,0.3608,63288.0,63282.0,0.12913224]
[1727113895097,0.3608,63288.0,63282.0,0.05012824]
[1727113895395,0.0917,63295.0,63282.0,0.05012824]
[1727113895396,0.078996,63291.0,63290.0,0.078997]
[1727113896982,0.079996,63291.0,63290.0,0.078997]
[1727113897588,0.079996,63291.0,63290.0,0.14187674]
[1727113898095,0.079996,63291.0,63290.0,0.14487674]
[1727113898288,0.079996,63291.0,63290.0,0.081997]
[1727113898490,0.079996,63291.0,63290.0,0.14487674]
[1727113898690,0.078996,63291.0,63290.0,0.085997]
[1727113899191,0.078996,63291.0,63290.0,0.087997]
[1727113901301,0.078996,63291.0,63290.0,0.084997]
[1727113901501,0.078996,63291.0,63290.0,0.087997]
[1727113902393,0.078996,63291.0,63290.0,0.081997]
[1727113902592,0.078996,63291.0,63290.0,0.009]
[1727113903003,0.078996,63291.0,63290.0,0.003]
[1727113903206,0.078996,63291.0,63290.0,0.008]
[1727113903594,0.078996,63291.0,63290.0,0.003]
[1727113903793,0.078996,63291.0,63290.0,0.006]
[1727113904209,0.078996,63291.0,63290.0,0.084997]
[1727113904395,0.078996,63291.0,63290.0,0.083997]
[1727113905309,0.078996,63291.0,63290.0,0.081997]
[1727113906195,0.078996,63291.0,63290.0,0.078997]
[1727113906397,0.078996,63291.0,63290.0,0.082997]
[1727113906797,0.078996,63291.0,63290.0,0.078997]
[1727113907002,0.078996,63291.0,63290.0,0.081997]
[1727113907505,0.10461083,63291.0,63290.0,0.081997]
[1727113907799,0.14350609,63291.0,63290.0,0.081997]
[1727113908007,0.14350609,63291.0,63290.0,0.082997]
[1727113908702,0.14450609,63291.0,63290.0,0.081997]
[1727113908906,0.14450609,63291.0,63290.0,0.080997]
[1727113910508,0.14450609,63291.0,63290.0,0.079997]
[1727113910705,0.1445081,63291.0,63290.0,0.079997]
[1727113912205,0.5843041,63291.0,63290.0,0.001]
[1727113912405,0.5843041,63291.0,63284.0,0.0037]
[1727113912406,0.079003,63285.0,63284.0,0.0037]
[1727113912607,0.079007,63282.0,63281.0,0.079008]
[1727113912798,0.10462176,63282.0,63281.0,0.079008]
[1727113913817,0.09762176,63282.0,63281.0,0.079008]
[1727113914011,0.09362176,63282.0,63281.0,0.079008]
[1727113914310,0.0494,63289.0,63283.0,0.079006]
[1727113914311,0.079005,63284.0,63283.0,0.079006]
[1727113914495,0.10462274,63284.0,63283.0,0.079006]
[1727113914696,0.079005,63284.0,63283.0,0.26092183]
[1727113915105,0.079005,63284.0,63283.0,0.18234323]
[1727113915609,0.079005,63284.0,63283.0,0.18734323]
[1727113916403,0.079005,63284.0,63283.0,0.19534323]
[1727113916797,0.079005,63284.0,63283.0,0.18734323]
[1727113917006,0.079005,63284.0,63283.0,0.18934323]
[1727113917204,0.15801,63284.0,63283.0,0.11033723]
[1727113917403,0.15801,63284.0,63283.0,0.18903873]
[1727113917800,0.15801,63284.0,63283.0,0.18604447]
[1727113918009,0.15801,63284.0,63283.0,0.18604487]
[1727113918510,0.15801,63284.0,63283.0,0.18405256]
[1727113918899,0.15801,63284.0,63283.0,0.10533723]
[1727113919102,0.080005,63284.0,63283.0,0.18334323]
[1727113921605,0.001,63284.0,63283.0,0.26234923]
[1727113922008,0.001,63284.0,63283.0,0.31224923]
[1727113922312,0.0037,63292.0,63291.0,0.078996]
[1727113922515,0.08136382,63294.0,63291.0,0.34176537]
[1727113922711,0.08136382,63294.0,63293.0,0.078993]
[1727113923911,0.00237082,63294.0,63293.0,0.078993]
[1727113924214,0.00937082,63294.0,63293.0,0.439793]
[1727113924403,0.00937082,63294.0,63293.0,0.078993]
[1727113924908,0.01337082,63294.0,63293.0,0.078993]
[1727113925710,0.01237082,63294.0,63293.0,0.078993]
[1727113926507,0.00937082,63294.0,63293.0,0.078993]
[1727113927106,0.00737082,63294.0,63293.0,0.078993]
[1727113928121,0.00737082,63294.0,63293.0,0.10369394]
[1727113928709,0.00737082,63294.0,63293.0,0.54348694]
[1727113929210,0.005,63294.0,63293.0,0.54348694]
[1727113929815,0.0037,63299.0,63298.0,0.157974]
[1727113930020,0.124376,63307.0,63298.0,0.157974]
[1727113930021,0.0037,63304.0,63303.0,0.078981]
[1727113930318,0.0454,63307.0,63306.0,0.078977]
[1727113930706,0.124376,63307.0,63306.0,0.078977]
[1727113931513,0.124376,63307.0,63306.0,0.12607959]
[1727113931704,0.078972,63310.0,63306.0,0.3608]
[1727113931911,0.078969,63313.0,63309.0,0.20709596]
[1727113932116,0.078969,63313.0,63312.0,0.078968]
[1727113933520,0.083969,63313.0,63312.0,0.079968]
[1727113934718,0.083969,63313.0,63312.0,0.080968]
[1727113936710,0.32275908,63313.0,63312.0,0.04147739]
[1727113936916,0.36853248,63313.0,63312.0,0.04147739]
[1727113937120,0.42065504,63313.0,63312.0,0.04147739]
[1727113937316,0.42065504,63313.0,63312.0,0.002]
[1727113937317,0.49962404,63313.0,63312.0,0.002]
[1727113937627,0.32586551,63313.0,63312.0,0.002]
[1727113938720,0.68666551,63313.0,63312.0,0.002]
[1727113938919,0.68666551,63313.0,63303.0,0.39330283]
[1727113938920,0.078975,63308.0,63305.0,0.078978]
[1727113939121,0.06503155,63307.0,63305.0,0.078978]
[1727113939321,0.16292751,63306.0,63305.0,0.078978]
[1727113939829,0.24190451,63306.0,63305.0,0.078978]
[1727113940019,0.24190451,63306.0,63305.0,0.079978]
[1727113940324,0.16292751,63306.0,63305.0,0.158956]
[1727113941029,0.16392751,63306.0,63305.0,0.159956]
[1727113941229,0.16392751,63306.0,63305.0,0.158956]
[1727113941428,0.16992751,63306.0,63305.0,0.159956]
[1727113942130,0.42261392,63313.0,63305.0,1.673614]
[1727113942131,0.1416222,63307.0,63305.0,1.673614]
[1727113942328,0.14160452,63311.0,63310.0,0.078972]
[1727113942530,0.14160452,63315.0,63310.0,0.16]
[1727113942724,0.11009392,63311.0,63310.0,0.157944]
[1727113943330,0.11009392,63311.0,63310.0,0.317944]
[1727113943632,0.11709392,63311.0,63310.0,0.318944]
[1727113943933,0.01,63311.0,63310.0,1.393784]
[1727113944129,0.11909392,63311.0,63310.0,1.393784]
[1727113944334,0.009,63311.0,63310.0,1.393784]
[1727113944728,0.11009392,63313.0,63312.0,0.07897]
[1727113945127,0.11009392,63313.0,63312.0,0.55281]
[1727113945829,0.11009392,63313.0,63312.0,0.55381]
[1727113946030,0.11009392,63313.0,63312.0,0.07997]
[1727113946723,0.11009392,63313.0,63312.0,0.08097]
[1727113949036,0.11009392,63313.0,63312.0,1.23378]
[1727113949333,0.0037,63318.0,63317.0,0.078963]
[1727113949539,0.5028,63326.0,63317.0,0.078963]
[1727113949540,0.07896,63320.0,63319.0,0.078958]
[1727113949743,0.07896,63320.0,63319.0,0.238958]
[1727113950840,0.07896,63320.0,63319.0,0.239958]
[1727113951827,0.07896,63320.0,63319.0,0.28688067]
[1727113952032,0.07896,63320.0,63319.0,0.239958]
[1727113952233,0.078956,63323.0,63322.0,0.078953]
[1727113952543,0.078956,63323.0,63322.0,0.238953]
[1727113953527,0.078956,63323.0,63322.0,0.240953]
[1727113954932,0.078956,63323.0,63322.0,0.30377227]
[1727113955131,0.078956,63323.0,63322.0,0.240953]
[1727113956434,0.157912,63323.0,63322.0,0.162]
[1727113956833,0.078956,63323.0,63322.0,0.240957]
[1727113958543,0.078956,63323.0,63322.0,0.30377627]
[1727113958739,0.078956,63323.0,63322.0,0.240957]
[1727113959436,0.078956,63323.0,63322.0,0.30377627]
[1727113959743,0.18280377,63323.0,63322.0,0.11454451]
[1727113960053,0.23127011,63323.0,63322.0,0.11454451]
[1727113961046,0.22897192,63323.0,63322.0,0.064788]
[1727113961237,0.22897192,63323.0,63322.0,0.224788]
[1727113966851,0.078956,63323.0,63322.0,0.224788]
[1727113967147,0.078953,63326.0,63325.0,0.078951]
[1727113967541,0.078953,63326.0,63325.0,0.12596845]
[1727113968453,0.078953,63326.0,63325.0,0.12796845]
[1727113968651,0.157906,63326.0,63325.0,0.12796845]
[1727113968848,0.157906,63326.0,63325.0,0.04901745]
[1727113969150,0.236859,63326.0,63325.0,0.002]
[1727113969348,0.236859,63326.0,63325.0,0.04901745]
[1727113970443,0.236859,63326.0,63325.0,0.002]
[1727113970945,0.236859,63326.0,63325.0,0.04907217]
[1727113971355,0.236859,63326.0,63325.0,0.002]
[1727113974245,0.236859,63326.0,63325.0,0.06481927]
[1727113974852,0.28468015,63326.0,63317.0,0.30665972]
[1727113975051,0.078957,63323.0,63322.0,0.078957]
[1727113975349,0.28468415,63323.0,63322.0,0.078957]
[1727113975549,0.22805122,63323.0,63322.0,0.078957]
[1727113975751,0.20245005,63323.0,63322.0,0.078957]
[1727113976557,0.20245005,63323.0,63322.0,0.079957]
[1727113977648,0.25908298,63323.0,63322.0,0.080957]
[1727113978854,0.20245005,63323.0,63322.0,0.080957]
[1727113979160,0.25908298,63323.0,63322.0,0.080957]
[1727113979946,0.25482873,63323.0,63322.0,0.080957]
[1727113981864,0.078957,63323.0,63322.0,0.18951783]
[1727113983381,0.078957,63323.0,63322.0,0.18963556]
[1727113983949,0.078957,63323.0,63322.0,0.29963556]
[1727113987369,0.078957,63323.0,63322.0,0.32432525]
[1727113987864,0.078957,63323.0,63322.0,0.29963556]
[1727113988070,0.078957,63323.0,63322.0,0.11067856]
[1727113988265,0.078956,63323.0,63322.0,0.11078546]
[1727113988569,0.078956,63323.0,63322.0,0.002]
[1727113988773,0.078956,63323.0,63322.0,0.08063794]
[1727113989159,0.078956,63323.0,63322.0,0.15959494]
[1727113989363,0.157912,63323.0,63322.0,0.26833667]
[1727113990569,0.078956,63323.0,63322.0,0.26833667]
[1727113990771,0.157912,63323.0,63322.0,0.26833667]
[1727113991174,0.078956,63323.0,63322.0,0.26833667]
[1727113991872,0.078956,63323.0,63322.0,0.080957]
[1727113992959,0.157912,63323.0,63322.0,0.080957]
[1727113993662,0.078956,63323.0,63322.0,0.080957]
[1727113994072,0.157912,63323.0,63322.0,0.080957]
[1727113996887,0.27704729,63323.0,63322.0,0.080957]
[1727113999675,0.19809129,63323.0,63322.0,0.080957]
[1727114001277,0.19809129,63323.0,63322.0,0.190957]
[1727114001480,0.19809129,63323.0,63322.0,0.551757]
[1727114002080,0.19809129,63323.0,63322.0,0.190957]
[1727114004678,0.11913529,63323.0,63322.0,0.190957]
[1727114004888,0.078954,63325.0,63324.0,0.078955]
[1727114005987,0.078954,63325.0,63324.0,0.079955]
[1727114006175,0.078954,63325.0,63324.0,0.080955]
[1727114007481,0.157908,63325.0,63324.0,0.002]
[1727114007674,0.157908,63325.0,63324.0,0.080955]
[1727114008476,0.078954,63325.0,63324.0,0.080955]
[1727114011791,0.19822064,63325.0,63324.0,0.080955]
[1727114013302,0.27717364,63325.0,63324.0,0.002]
[1727114014092,0.19821964,63325.0,63324.0,0.002]
[1727114014406,0.19821964,63325.0,63324.0,0.080955]
[1727114016096,0.27717264,63325.0,63324.0,0.080955]
[1727114016501,0.19821964,63325.0,63324.0,0.080955]
[1727114016806,0.19819421,63325.0,63324.0,0.080955]
[1727114018097,0.27714721,63325.0,63324.0,0.080955]
[1727114018502,0.19819421,63325.0,63324.0,0.080955]
[1727114018908,0.27714721,63325.0,63324.0,0.080955]
[1727114019321,0.27714721,63325.0,63324.0,0.04888606]
[1727114019707,0.19819421,63325.0,63324.0,0.04888606]
[1727114019905,0.157906,63325.0,63324.0,0.04888606]
[1727114023006,0.078953,63325.0,63324.0,0.04888606]
[1727114023399,0.157906,63325.0,63324.0,0.04888606]
[1727114026817,0.27687949,63325.0,63324.0,0.04888606]
[1727114027304,0.07896,63322.0,63321.0,0.078957]
[1727114027504,0.15926556,63322.0,63321.0,0.078957]
[1727114027803,0.19793349,63322.0,63321.0,0.078957]
[1727114028615,0.35591802,63322.0,63321.0,0.078957]
[1727114028811,0.27689349,63322.0,63321.0,0.078957]
[1727114029006,0.43487802,63322.0,63321.0,0.079957]
[1727114029326,0.43587802,63322.0,63321.0,0.080957]
[1727114030505,0.27789349,63322.0,63321.0,0.080957]
[1727114030809,0.19075793,63322.0,63321.0,0.080957]
[1727114031014,0.27789349,63322.0,63321.0,0.080957]
[1727114031208,0.41301274,63322.0,63321.0,0.080957]
[1727114031407,0.27783086,63322.0,63321.0,0.080957]
[1727114035119,0.27783086,63322.0,63321.0,0.31960298]
[1727114035120,0.1194143,63322.0,63321.0,0.31960298]
[1727114035321,0.001,63322.0,63321.0,0.18983305]
[1727114035517,0.001,63322.0,63321.0,0.40348188]
[1727114035829,0.078952,63327.0,63326.0,0.078952]
[1727114036013,0.078952,63327.0,63326.0,0.42732504]
[1727114036210,0.078952,63327.0,63326.0,0.45201351]
[1727114036412,0.078952,63327.0,63326.0,0.32251652]
[1727114036611,0.078952,63327.0,63326.0,0.29782805]
[1727114037826,0.078952,63327.0,63326.0,0.39203804]
[1727114038320,0.078952,63327.0,63326.0,0.39202457]
[1727114038622,0.157904,63327.0,63326.0,0.18782805]
[1727114038825,0.236856,63327.0,63326.0,0.10887605]
[1727114039325,0.236856,63327.0,63326.0,0.18838254]
[1727114040026,0.236856,63327.0,63326.0,0.18938254]
[1727114040210,0.236856,63327.0,63326.0,0.11087605]
[1727114040619,0.236856,63327.0,63326.0,0.11041436]
[1727114041216,0.236856,63327.0,63326.0,0.18890893]
[1727114041422,0.236856,63327.0,63326.0,0.11041436]
[1727114041832,0.157904,63327.0,63326.0,0.11041436]
[1727114042014,0.157904,63327.0,63326.0,0.22041436]
[1727114043330,0.157904,63327.0,63326.0,0.29936636]
[1727114044218,0.078952,63327.0,63326.0,0.29926169]
[1727114048628,0.078952,63327.0,63326.0,0.29924947]
[1727114049130,0.078952,63327.0,63326.0,0.2992517]
[1727114050030,0.11120553,63327.0,63326.0,0.190952]
[1727114053126,0.03225353,63327.0,63326.0,0.630704]
[1727114053332,0.0037,63343.0,63332.0,0.18172643]
[1727114053528,0.0037,63340.0,63333.0,0.3608]
[1727114053733,0.03262249,63339.0,63333.0,0.3608]
[1727114054035,0.078939,63337.0,63335.0,0.07894]
[1727114054230,0.078943,63334.0,63332.0,0.18172643]
[1727114054436,0.188943,63334.0,63333.0,0.078943]
[1727114054636,0.078943,63333.0,63332.0,0.18272643]
[1727114054936,0.188943,63333.0,63332.0,0.18272643]
[1727114055334,0.188943,63333.0,63332.0,0.18172643]
[1727114056226,0.188943,63333.0,63332.0,0.18272643]
[1727114056427,0.22049426,63333.0,63332.0,0.18272643]
[1727114057031,0.188943,63333.0,63332.0,0.18272643]
[1727114059137,0.188943,63333.0,63332.0,0.26167143]
[1727114059739,0.078943,63333.0,63332.0,0.26167143]
[1727114060236,0.078941,63336.0,63335.0,0.078939]
[1727114060634,0.078941,63336.0,63335.0,0.188939]
[1727114060837,0.078936,63339.0,63338.0,0.078937]
[1727114061335,0.078936,63339.0,63338.0,0.14165143]
[1727114061534,0.078936,63339.0,63338.0,0.078937]
[1727114062231,0.439736,63339.0,63338.0,0.079937]
[1727114062546,0.439736,63339.0,63338.0,0.14264302]
[1727114062729,0.439736,63339.0,63338.0,0.14364302]
[1727114063226,0.439736,63339.0,63338.0,0.14363949]
[1727114065142,0.439736,63339.0,63338.0,0.080937]
[1727114065536,0.439736,63339.0,63338.0,0.14364374]
[1727114065735,0.439736,63339.0,63338.0,0.080937]
[1727114067242,0.439736,63339.0,63338.0,0.25364424]
[1727114067449,0.439736,63339.0,63338.0,0.190937]
[1727114068141,0.439736,63339.0,63338.0,0.25364411]
[1727114069741,0.439736,63339.0,63338.0,0.190937]
[1727114070631,0.078932,63342.0,63341.0,0.078933]
[1727114070832,0.078932,63342.0,63341.0,0.25162147]
[1727114071038,0.078929,63345.0,63344.0,0.078927]
[1727114071241,0.078929,63345.0,63344.0,0.12594307]
[1727114071547,0.173126,63347.0,63346.0,0.078927]
[1727114072046,0.1108706,63347.0,63346.0,0.078927]
[1727114072443,0.0319446,63347.0,63346.0,0.078927]
[1727114072833,0.439725,63348.0,63347.0,0.078926]
[1727114073147,0.47175664,63348.0,63347.0,0.188926]
[1727114075157,0.47175664,63348.0,63347.0,0.189926]
[1727114075343,0.47175664,63348.0,63347.0,0.080926]
[1727114077641,0.078921,63351.0,63350.0,0.078922]
[1727114077842,0.11110645,63351.0,63350.0,0.188922]
[1727114078038,0.078921,63351.0,63350.0,0.188922]
[1727114078442,0.11116595,63351.0,63350.0,0.188922]